[Event "Vugar Gashimov Memorial Blitz 2024"]
[Site "Shusha"]
[Date "2024.09.28"]
[Round "8.3"]
[White "Aravindh, Chithambaram VR."]
[Black "Abdusattorov, Nodirbek"]
[Result "1-0"]
[ECO "C64"]
[WhiteElo "2698"]
[BlackElo "2766"]
[Annotator "TA"]
[PlyCount "145"]
[EventDate "2024.09.28"]
[EventType "tourn"]
[EventCountry "AZE"]
[SourceTitle "playchess.com"]
[Source "ChessBase"]
[SourceQuality "1"]
[TimeControl "180+2"]

{[%evp 47,145,326,307,324,341,340,437,366,365,364,415,417,635,616,602,620,864,508,610,611,594,534,517,366,373,386,386,379,353,345,375,342,326,314,538,265,387,380,380,380,399,388,479,372,351,182,164,162,164,172,302,0,202,230,582,421,700,683,657,475,476,68,68,0,592,580,551,497,5812,921,29975,29976,29978,29979,29979,29980,29979,29980,29989,29990,29990,29991,29992,29984,29986,29970,29984,29985,29988,29989,29989,29984,29984,29985,29985,29984,29986,29987,29996,29989]} 1. e4 {[%emt 0:00:01]} e5 {[%emt 0:00:01]} 2. Nf3 {[%emt 0:00:02]} Nc6 {[%emt 0:00:01]} 3. Bb5 {[%emt 0:00:03]} Bc5 {[%emt 0:00:02]} 4. c3 {[%emt 0:00:05]} Nf6 {[%emt 0:00:04]} 5. d4 {[%emt 0:00:03]} exd4 {[%emt 0:00:02]} 6. e5 {[%emt 0:00:02]} Nd5 {[%emt 0:00:01]} 7. O-O {[%emt 0:00:03]} Be7 {[%emt 0:00:02]} 8. Qb3 {[%emt 0:00:08]} Nb6 {[%emt 0:00:12]} 9. a4 {[%emt 0:00:02]} a6 {[%emt 0:00:14]} 10. Bd3 {[%emt 0:00:08]} a5 {[%emt 0:00:03]} 11. cxd4 {[%emt 0:00:03]} Nb4 {[%emt 0:00:06]} 12. Bf5 {[%emt 0:00:43]} d5 {[%emt 0:00:12]} 13. Bxc8 {[%emt 0:00:08]} Rxc8 {[%emt 0:00:01]} 14. Bd2 {[%emt 0:00:08]} O-O {[%emt 0:00:03]} 15. Na3 {[%emt 0:00:13]} c5 {[%emt 0:00:06]} 16. dxc5 {[%emt 0:00:04]} Bxc5 {[%emt 0:00:01]} 17. Rac1 {[%emt 0:00:22]} Qd7 {[%emt 0:00:00]} 18. Nb5 {[%emt 0:00:15]} Nc4 {[%emt 0:00:01]} 19. Bxb4 {[%emt 0:00:08]} axb4 {[%emt 0:00:01]} 20. Rcd1 {[%emt 0:00:15]} Qe6 {[%emt 0:00:12]} 21. Rfe1 {[%emt 0:00:01]} Rfe8 {[%emt 0:00:18]} 22. h3 {[%emt 0:00:01]} h6 {[%emt 0:00:03]} 23. Re2 {[%emt 0:00:05]} Rcd8 {[%emt 0:00:09]} 24. Nc7 {[%emt 0:00:05]} Qc6 {[%emt 0:00:10]} 25. Nxe8 {[%emt 0:00:02]} Rxe8 {[%emt 0:00:00]} 26. Qd3 {[%emt 0:00:02]} Rd8 {[%emt 0:00:05]} 27. b3 {[%emt 0:00:01]} Na5 {[%emt 0:00:01]} 28. Nd4 {[%emt 0:00:09]} Bxd4 {[%emt 0:00:15]} 29. Qxd4 {[%emt 0:00:02]} Qc3 {[%emt 0:00:01]} (29... Qc8 $142 30. Qxb4 Nc6) 30. Qb6 $18 {[%emt 0:00:10]} Nc6 {[%emt 0:00:01]} 31. Qxb7 {[%emt 0:00:06]} d4 {[%emt 0:00:09]} 32. Red2 {[%emt 0:00:10]} d3 {[%emt 0:00:01]} 33. Qc7 {[%emt 0:00:07]} Rd5 {[%emt 0:00:19]} 34. Qc8+ {[%emt 0:00:01]} Rd8 {[%emt 0:00:05]} 35. Qxd8+ {[%emt 0:00:05]} Nxd8 {[%emt 0:00:00]} 36. Rxd3 {[%emt 0:00:01]} Qxe5 {[%emt 0:00:03]} 37. Rxd8+ {[%emt 0:00:01]} Kh7 {[%emt 0:00:00]} 38. R8d3 {[%emt 0:00:03]} f5 {[%emt 0:00:04]} 39. Re3 {[%emt 0:00:05]} Qc5 {[%emt 0:00:02]} 40. Rd7 {[%emt 0:00:03]} h5 $2 {[%emt 0:00:01]} (40... Qc6 {was worth a try.} 41. Rde7 Qc5) 41. g3 {[%emt 0:00:04]} (41. Rg3 $142 h4 42. Rgxg7+ (42. Rdxg7+ Kh8 $18) 42... Kh6 43. Rh7+ Kg5 44. Rdg7+ Kf6 45. Rc7) 41... h4 {[%emt 0:00:04]} (41... Qc1+ {is a better defense.} 42. Kh2 Qc5) 42. gxh4 $18 {[%emt 0:00:02]} Qc1+ {[%emt 0:00:04]} 43. Kh2 {[%emt 0:00:01]} Qc2 {[%emt 0:00:01]} 44. Rf3 {[%emt 0:00:03]} Qe4 {[%emt 0:00:04]} 45. Rdd3 {[%emt 0:00:02]} g6 {[%emt 0:00:01]} 46. Rfe3 {[%emt 0:00:02]} (46. Kg3 $142) 46... Qxh4 $18 {[%emt 0:00:01]} 47. Kg2 {[%emt 0:00:00]} Qg5+ {[%emt 0:00:01]} 48. Rg3 {[%emt 0:00:01]} Qe7 {[%emt 0:00:02]} (48... Qf4 $142 49. Rd7+ Kh6) 49. Rge3 {[%emt 0:00:04]} Qg5+ {[%emt 0:00:01]} 50. Kf1 {[%emt 0:00:01]} Qf4 $2 {[%emt 0:00:04]} (50... f4) 51. a5 $18 {[%emt 0:00:03]} Qc7 {[%emt 0:00:01]} (51... Kh6 $142 52. a6 Qb8) 52. a6 $18 {[%emt 0:00:02]} Qc1+ {[%emt 0:00:01]} 53. Ke2 {[%emt 0:00:02]} Qc7 {[%emt 0:00:10]} 54. Kd1 $2 {[%emt 0:00:03]} (54. Rd2 $18) 54... Kh6 $14 {[%emt 0:00:02]} 55. Re6 {[%emt 0:00:02]} (55. Rd4 $14) 55... Qa5 $2 {[%emt 0:00:04][%mdl 8192]} (55... Qc5 $11) 56. Rdd6 $18 {[%emt 0:00:01]} Qa1+ {[%emt 0:00:01]} 57. Ke2 {[%emt 0:00:01]} Qa2+ {[%emt 0:00:01]} (57... Kg5 $142 58. Rxg6+ Kf4) 58. Kf1 {[%emt 0:00:02]} (58. Kf3 $142 Qxb3+ 59. Kg2) 58... Qxb3 {[%emt 0:00:01]} 59. Rxg6+ {[%emt 0:00:03]} Kh5 {[%emt 0:00:00]} 60. a7 {[%emt 0:00:03]} Qb1+ {[%emt 0:00:07]} 61. Kg2 {[%emt 0:00:01]} Qe4+ {[%emt 0:00:01]} 62. Kh2 {[%emt 0:00:02]} Qf4+ {[%emt 0:00:00]} 63. Kg1 {[%emt 0:00:02]} Qc1+ {[%emt 0:00:05]} 64. Kg2 {[%emt 0:00:01]} Qc8 {[%emt 0:00:03]} 65. Rh6+ {[%emt 0:00:03]} Kg5 {[%emt 0:00:01]} 66. Rdg6+ {[%emt 0:00:02]} Kf4 {[%emt 0:00:00]} 67. Ra6 {[%emt 0:00:01]} Qg8+ {[%emt 0:00:07]} 68. Kh2 {[%emt 0:00:04]} Qa8 {[%emt 0:00:08]} 69. Rh8 {[%emt 0:00:02]} Qxh8 {[%emt 0:00:06]} 70. a8=Q {[%emt 0:00:06]} (70. a8=B Qd4 71. Ra5 Qxf2+ 72. Bg2 Qg3+ 73. Kh1 b3 74. Ra4+ Kg5 $19) 70... Qd4 {[%emt 0:00:01]} 71. Qb8+ {[%emt 0:00:00]} Kf3 {[%emt 0:00:00]} 72. Qg3+ {[%emt 0:00:00]} Ke2 {[%emt 0:00:01]} 73. Re6+ {[%emt 0:00:02]} 1-0

[Event "Vugar Gashimov Memorial Blitz 2024"]
[Site "Shusha"]
[Date "2024.09.28"]
[Round "8.4"]
[White "Mamedov, Rauf"]
[Black "Rapport, Richard"]
[Result "1-0"]
[ECO "C50"]
[WhiteElo "2637"]
[BlackElo "2715"]
[Annotator "TA"]
[PlyCount "104"]
[EventDate "2024.09.28"]
[EventType "tourn"]
[EventCountry "AZE"]
[SourceTitle "playchess.com"]
[Source "ChessBase"]
[SourceQuality "1"]
[TimeControl "180+2"]

{[%evp 46,104,147,134,200,172,177,138,168,164,177,167,231,45,45,64,29,66,19,0,0,0,0,-251,-227,-243,0,0,0,0,91,96,264,237,247,252,260,230,258,258,242,212,1175,1129,6528,959,798,1034,976,836,1045,1045,29982,1128,1039,1005,1008,898,12797,6070,5157]} 1. Nf3 {[%emt 0:00:01]} Nc6 {[%emt 0:00:12]} 2. e4 {[%emt 0:00:04]} e5 {[%emt 0:00:01]} 3. d4 {[%emt 0:00:02]} exd4 {[%emt 0:00:01]} 4. Bc4 {[%emt 0:00:01]} d6 {[%emt 0:00:09]} 5. Nxd4 {[%emt 0:00:01]} Be7 {[%emt 0:00:04]} 6. Nc3 {[%emt 0:00:04]} Nf6 {[%emt 0:00:01]} 7. O-O {[%emt 0:00:04]} O-O {[%emt 0:00:02]} 8. Re1 {[%emt 0:00:02]} Re8 {[%emt 0:00:13]} 9. Bg5 {[%emt 0:00:06] C50: Hungarian Defence and Giuoco Pianissimo.} Ne5 {[%emt 0:00:04]} 10. Bb3 {[%emt 0:00:10]} h6 {[%emt 0:00:06]} 11. Bf4 {[%emt 0:00:07]} c6 $146 {[%emt 0:00:06]} ({Predecessor:} 11... Ng6 12. Bg3 c6 13. a4 Bf8 14. h3 Qc7 15. Qd2 Bd7 16. Rad1 Rad8 17. Re3 Nh5 {1-0 Naroditsky,D (2618)-Halkias,S (2511) Titled Tuesday intern op 30th May Late blitz 2023 (7)}) 12. a4 {[%emt 0:00:06]} Bf8 {[%emt 0:00:03]} 13. a5 {[%emt 0:00:03]} Qc7 {[%emt 0:00:05]} 14. Bg3 {[%emt 0:00:04]} Ng6 {[%emt 0:00:14]} 15. h3 {[%emt 0:00:24]} Bd7 {[%emt 0:00:13]} 16. Qd3 {[%emt 0:00:13]} Rad8 {[%emt 0:00:04]} 17. Qc4 {[%emt 0:00:07]} Be6 {[%emt 0:00:15]} 18. Nxe6 {[%emt 0:00:07]} fxe6 {[%emt 0:00:01]} 19. a6 {[%emt 0:00:10]} Ne5 {[%emt 0:00:48]} 20. Qe2 {[%emt 0:00:03]} b5 {[%emt 0:00:03]} 21. f4 {[%emt 0:00:02]} Nf7 {[%emt 0:00:05]} 22. e5 {[%emt 0:00:13]} dxe5 {[%emt 0:00:09]} 23. fxe5 {[%emt 0:00:01]} Nd5 {[%emt 0:00:07]} 24. Ne4 {[%emt 0:00:06]} Be7 {[%emt 0:00:10]} (24... Ng5 $16 25. Nd6 Bxd6 26. exd6 Qb6+ 27. Bf2 Qb8) 25. Qg4 {[%emt 0:00:03]} Ng5 {[%emt 0:00:01]} 26. Kh2 {[%emt 0:00:16]} Nxe4 {[%emt 0:00:08]} 27. Rxe4 {[%emt 0:00:14]} Bc5 {[%emt 0:00:04]} 28. Rf1 {[%emt 0:00:06]} Qd7 {[%emt 0:00:05] [#]} (28... Qe7 $142 29. Bh4 g5 (29... Ne3 $2 30. Rxe3 g5 31. Rg3 $18)) 29. c3 $2 {[%emt 0:00:32]} (29. Rf6 $1 $18 {[%cal Rf6h6]} Kh8 30. Qh5 gxf6 31. Bxd5 (31. exf6 Kh7 $11)) 29... Rf8 $1 $14 {[%emt 0:00:02]} (29... Ne3 $2 30. Rxe3 Bxe3 31. Rf3 $18 (31. Rf6 Qd2 $18)) 30. Rf6 {[%emt 0:00:04]} Kh8 $1 {[%emt 0:00:05]} 31. Rxe6 {[%emt 0:00:05]} Rf1 {[%emt 0:00:02]} 32. Re1 {[%emt 0:00:07]} (32. Rd4 $5 Bxd4 33. cxd4 $16) 32... Ne3 {[%emt 0:00:03]} 33. Qe2 {[%emt 0:00:04]} Rdf8 {[%emt 0:00:08]} 34. Rd6 $2 {[%emt 0:00:07][%mdl 8192]} (34. h4 $11) 34... Rxe1 $19 {[%emt 0:00:05]} (34... Bxd6 35. Qxe3 Rxe1 36. Qxe1 $11) 35. Qxe1 {[%emt 0:00:01]} Bxd6 $2 {[%emt 0:00:09]} (35... Qf5 $19 36. Rd1 (36. Rxc6 $2 {loses.} Qe4 $19) 36... Nf1+ (36... Nxd1 $2 37. Qxd1 Bf2 38. Bxf2 $17) 37. Qxf1 (37. Kh1 $2 Qg5 $19) 37... Qxf1 38. Rxf1 Rxf1) 36. Qxe3 $11 {[%emt 0:00:01]} Bb8 $1 {[%emt 0:00:03]} 37. Bc2 {[%emt 0:00:01]} Qe7 {[%emt 0:00:02]} (37... Qe6 $11 {keeps the balance.}) 38. Qe4 $16 {[%emt 0:00:16]} g5 $2 {[%emt 0:00:00]} (38... g6 $16) 39. Qxc6 $18 {[%emt 0:00:00]} Qg7 {[%emt 0:00:04]} 40. Qxb5 {[%emt 0:00:00]} h5 {[%emt 0:00:01]} 41. Qe2 {[%emt 0:00:00]} Qh6 {[%emt 0:00:03]} 42. e6 {[%emt 0:00:00]} Bxg3+ {[%emt 0:00:02]} 43. Kxg3 {[%emt 0:00:00]} g4 $2 {[%emt 0:00:01]} (43... Re8 44. Bf5 (44. Qe5+ Qg7 $14) 44... Kg8) 44. Qe5+ $18 {[%emt 0:00:00]} (44. hxg4 Qf4+ 45. Kh3 hxg4+ 46. Qxg4 Qe3+ 47. g3 Rf6 $11) 44... Kg8 {[%emt 0:00:01]} 45. hxg4 {[%emt 0:00:02]} (45. e7 $142 Re8 46. Bb3+ (46. hxg4 hxg4 47. Bb3+ Kh7 48. Ba4 Rc8 49. e8=Q Rxe8 50. Bc2+ Kg8 51. Qxe8+ Qf8) 46... Kh7 47. Bc2+ (47. hxg4 h4+ 48. Kh3 Qc6 $18) 47... Kg8 48. hxg4) 45... h4+ $18 {[%emt 0:00:02]} 46. Kh3 {[%emt 0:00:02]} Qc1 {[%emt 0:00:01]} 47. e7 {[%emt 0:00:07]} Qh1+ {[%emt 0:00:04]} 48. Qh2 {[%emt 0:00:01]} Qxh2+ {[%emt 0:00:01]} 49. Kxh2 {[%emt 0:00:01]} Re8 {[%emt 0:00:01]} 50. b4 {[%emt 0:00:02]} Rxe7 {[%emt 0:00:01]} 51. b5 {[%emt 0:00:00]} Rc7 {[%emt 0:00:06]} 52. Be4 {[%emt 0:00:01]} Rd7 {[%emt 0:00:05]} 1-0

[Event "Vugar Gashimov Memorial Blitz 2024"]
[Site "Shusha"]
[Date "2024.09.28"]
[Round "9.1"]
[White "Mamedov, Rauf"]
[Black "Mamedyarov, Shakhriyar"]
[Result "0-1"]
[ECO "B28"]
[WhiteElo "2637"]
[BlackElo "2733"]
[Annotator "TA"]
[PlyCount "54"]
[EventDate "2024.09.28"]
[EventType "tourn"]
[EventCountry "AZE"]
[SourceTitle "playchess.com"]
[Source "ChessBase"]
[SourceQuality "1"]
[TimeControl "180+2"]

{[%evp 9,54,14,28,18,28,-23,0,-48,-12,-80,-68,-60,-62,-87,-88,-202,-196,-180,-232,-162,-168,-170,-169,-162,-114,-110,-49,-56,-58,-114,-120,-162,-108,-191,-189,-212,-178,-176,-129,-460,-445,-432,-420,-406,-398,-593,-580]} 1. e4 {[%emt 0:00:00]} c5 {[%emt 0:00:00]} 2. Nf3 {[%emt 0:00:23]} a6 {[%emt 0:00:01]} 3. g3 {[%emt 0:00:05]} Nc6 {[%emt 0:00:02]} 4. Bg2 {[%emt 0:00:02]} Nf6 {[%emt 0:00:01]} 5. d3 {[%emt 0:00:04]} e5 {[%emt 0:00:02]} 6. h3 {[%emt 0:00:07]} Be7 {[%emt 0:00:03]} 7. Nbd2 {[%emt 0:00:03]} (7. Nc3 $142) 7... O-O {[%emt 0:00:02]} 8. a3 {[%emt 0:00:05]} (8. Nc4 $11 {should be considered.}) 8... d6 {[%emt 0:00:06]} 9. b4 {[%emt 0:00:03]} cxb4 {[%emt 0:00:05]} 10. axb4 {[%emt 0:00:01]} Nxb4 {[%emt 0:00:00]} 11. Ba3 {[%emt 0:00:04]} d5 {[%emt 0:00:32] Black is more active.} 12. Nxe5 {[%emt 0:00:38]} (12. O-O $17) 12... Qc7 $19 {[%emt 0:00:04][%csl LRc2,LRe5]} 13. Bxb4 {[%emt 0:00:15]} Bxb4 {[%emt 0:00:03]} 14. Ng4 {[%emt 0:00:36]} Bxg4 {[%emt 0:00:53]} 15. hxg4 {[%emt 0:00:01]} dxe4 {[%emt 0:00:01][%cal Oe4e3] [#] ...e3! would now be deadly.} 16. O-O {[%emt 0:00:12] White is weak on the dark squares} exd3 {[%emt 0:00:12]} (16... e3 $1 $19 17. fxe3 Bxd2 (17... Qxg3 $2 18. Rf3 $19) 18. Qxd2 Qxg3 (18... Nxg4 19. Rf4 $17)) 17. cxd3 $17 {[%emt 0:00:01]} Bxd2 {[%emt 0:00:05]} (17... Rfd8 $17 18. Rc1 Qb6) 18. Qxd2 $15 {[%emt 0:00:03]} Nxg4 {[%emt 0:00:02]} 19. Rfe1 {[%emt 0:00:11]} ({Better is} 19. Qb4 $15 h5 20. Qxb7) 19... Rab8 $17 {[%emt 0:00:04]} 20. Rac1 {[%emt 0:00:14]} Qd6 {[%emt 0:00:05]} (20... Qd8 $19 21. d4 Nf6) 21. Bf3 {[%emt 0:00:10]} (21. Re4 $17 {might work better.} h5 22. Rb4) 21... Ne5 $19 {[%emt 0:00:06]} 22. Be4 {[%emt 0:00:28]} Rfd8 {[%emt 0:00:04][%cal Ob7b5]} 23. Qf4 {[%emt 0:00:00][%cal Oe4h7]} Nxd3 {[%emt 0:00:37]} (23... Kf8 $19 24. Qh4 h6 (24... Nxd3 25. Rcd1 $11) 25. Bxb7 Kg8 (25... Rxb7 26. Rxe5 Rb3 27. Rce1 $17) (25... Qxd3 $2 {loses.} 26. Qb4+ Kg8 27. Rxe5 $18)) 24. Qh4 $2 {[%emt 0:00:00][%mdl 8192] [#] This costs White the game.} (24. Qxd6 $17 Rxd6 25. Rcd1) 24... Nxe1 {[%emt 0:00:06]} 25. Qxh7+ {[%emt 0:00:00]} Kf8 {[%emt 0:00:01]} 26. Qh8+ {[%emt 0:00:03]} Ke7 {[%emt 0:00:01]} 27. Qh4+ {[%emt 0:00:01]} (27. Qxg7 $142 Rg8 28. Qc3) 27... Qf6 {[%emt 0:00:01] Weighted Error Value: White=0.71/Black=0.17 (very precise) .  Loses game:     	White=1     	---        Mistake:       	White=7     	Black=4      Inaccurate:     	White=1     	Black=1      OK:         	White=5     	Black=6      Best:        	---       	Black=3} 0-1

[Event "Vugar Gashimov Memorial Blitz 2024"]
[Site "Shusha"]
[Date "2024.09.28"]
[Round "9.2"]
[White "Rapport, Richard"]
[Black "Aravindh, Chithambaram VR."]
[Result "0-1"]
[ECO "C00"]
[WhiteElo "2715"]
[BlackElo "2698"]
[Annotator "RC"]
[PlyCount "72"]
[EventDate "2024.09.28"]
[EventType "tourn"]
[EventCountry "AZE"]
[SourceTitle "playchess.com"]
[Source "ChessBase"]
[SourceQuality "1"]
[TimeControl "180+2"]

1. e4 {[%emt 0:00:02]} c5 {[%emt 0:00:03]} 2. Nf3 {[%emt 0:00:02]} e6 {[%emt 0:00:02]} 3. d3 {[%emt 0:00:01]} Nc6 {[%emt 0:00:01]} 4. g3 {[%emt 0:00:01]} d5 {[%emt 0:00:05]} 5. Nbd2 {[%emt 0:00:02]} Nf6 {[%emt 0:00:02]} 6. Bg2 {[%emt 0:00:01]} Be7 {[%emt 0:00:01]} 7. O-O {[%emt 0:00:02]} O-O {[%emt 0:00:02]} 8. e5 {[%emt 0:00:03]} Nd7 {[%emt 0:00:02]} 9. Re1 {[%emt 0:00:01]} b5 {[%emt 0:00:01]} 10. Nf1 {[%emt 0:00:01]} a5 {[%emt 0:00:02]} 11. h4 {[%emt 0:00:02]} Bb7 {[%emt 0:00:15]} 12. Bf4 {[%emt 0:00:02]} a4 {[%emt 0:00:08]} 13. a3 {[%emt 0:00:01]} b4 {[%emt 0:00:04]} 14. axb4 {[%emt 0:00:02]} cxb4 {[%emt 0:00:03]} 15. d4 {[%emt 0:00:01]} Qb6 {[%emt 0:00:13]} 16. Ne3 {[%emt 0:00:03]} Rfc8 {[%emt 0:00:05]} 17. h5 {[%emt 0:00:08]} h6 {[%emt 0:00:03]} 18. Ng4 {[%emt 0:00:05]} Bf8 {[%emt 0:00:03]} 19. Qd2 {[%emt 0:00:09]} Qd8 {[%emt 0:00:04]} 20. Bf1 {[%emt 0:00:04]} a3 {[%emt 0:00:25]} 21. b3 {[%emt 0:00:04]} Ba6 {[%emt 0:00:04]} 22. Bh3 {[%emt 0:00:04]} Rc7 {[%emt 0:00:13]} 23. Ne3 {[%emt 0:00:08]} Na7 {[%emt 0:00:08]} 24. g4 {[%emt 0:00:02]} Be7 {[%emt 0:00:04]} 25. Kh2 {[%emt 0:00:01]} Nb5 {[%emt 0:00:04]} 26. Rg1 {[%emt 0:00:01]} Nc3 {[%emt 0:00:01]} 27. Nf5 {[%emt 0:00:17]} Ne4 {[%emt 0:00:11]} 28. Qc1 {[%emt 0:00:02]} Rac8 {[%emt 0:00:07]} 29. Ra2 {[%emt 0:00:00]} exf5 {[%emt 0:00:32]} 30. gxf5 {[%emt 0:00:02]} Bg5 {[%emt 0:00:01]} 31. f6 {[%emt 0:00:02]} Rxc2 {[%emt 0:00:15]} 32. Rxc2 {[%emt 0:00:03]} Rxc2 {[%emt 0:00:01]} 33. Qxc2 {[%emt 0:00:05]} Bxf4+ {[%emt 0:00:02]} 34. Kh1 {[%emt 0:00:02]} Ndxf6 {[%emt 0:00:02]} 35. exf6 {[%emt 0:00:23]} Qxf6 {[%emt 0:00:02]} 36. Bf1 {[%emt 0:00:05]} Qf5 {[%emt 0:00:10]} 0-1

[Event "Vugar Gashimov Memorial Blitz 2024"]
[Site "Shusha"]
[Date "2024.09.28"]
[Round "9.3"]
[White "Abdusattorov, Nodirbek"]
[Black "Suleymanli, Aydin"]
[Result "1/2-1/2"]
[ECO "C77"]
[WhiteElo "2766"]
[BlackElo "2632"]
[Annotator "TA"]
[PlyCount "124"]
[EventDate "2024.09.28"]
[EventType "tourn"]
[EventCountry "AZE"]
[SourceTitle "playchess.com"]
[Source "ChessBase"]
[SourceQuality "1"]
[TimeControl "180+2"]

{[%evp 65,124,0,0,0,0,-8,0,0,0,0,0,0,0,0,0,0,0,0,0,0,0,0,0,0,0,0,0,0,8,0,0,0,0,0,0,0,0,0,0,-8,-8,-8,-8,-8,-8,-8,-8,-8,0,0,0,-8,-8,-8,0,0,0,-8,-8,-8,-8]} 1. e4 {[%emt 0:00:01]} e5 {[%emt 0:00:00]} 2. Nf3 {[%emt 0:00:02]} Nc6 {[%emt 0:00:01]} 3. Bb5 {[%emt 0:00:01]} a6 {[%emt 0:00:01]} 4. Ba4 {[%emt 0:00:00]} Nf6 {[%emt 0:00:01]} 5. d3 {[%emt 0:00:01]} b5 {[%emt 0:00:02]} 6. Bb3 {[%emt 0:00:01]} Bc5 {[%emt 0:00:01]} 7. c3 {[%emt 0:00:02]} d6 {[%emt 0:00:01]} 8. Bg5 {[%emt 0:00:01] is cutting edge theory. C77: Ruy Lopez: 3...a6 4 Ba4 Nf6, unusual lines.} h6 {[%emt 0:00:02]} 9. Bh4 {[%emt 0:00:01]} Rb8 {[%emt 0:00:43]} 10. a4 {[%emt 0:00:04]} g5 {[%emt 0:00:08]} 11. Bg3 {[%emt 0:00:01]} Qe7 {[%emt 0:00:22]} 12. axb5 {[%emt 0:00:03]} axb5 {[%emt 0:00:01]} 13. Nbd2 {[%emt 0:00:08]} Be6 {[%emt 0:00:16]} 14. Bc2 $146 {[%emt 0:00:15]} ({Predecessor:} 14. O-O h5 15. h4 g4 16. Ng5 Bxb3 17. Nxb3 Nd7 18. d4 Bb6 19. d5 Nd8 20. Na5 Bxa5 21. Rxa5 {1-0 Matinian,N (2454)-Shahade,G (2476) Speed Chess GP3 blitz 2021 (7)}) 14... Bb6 {[%emt 0:00:19]} 15. O-O {[%emt 0:00:14]} O-O {[%emt 0:00:17]} 16. b4 {[%emt 0:00:08]} Nh7 {[%emt 0:00:09]} 17. Re1 {[%emt 0:00:15]} h5 {[%emt 0:00:03]} 18. h4 {[%emt 0:00:02]} g4 {[%emt 0:00:01]} 19. Nh2 {[%emt 0:00:02]} Rfd8 {[%emt 0:00:15]} 20. Kh1 {[%emt 0:00:10]} Nf8 {[%emt 0:00:23]} 21. f3 {[%emt 0:00:09]} Ng6 {[%emt 0:00:01]} 22. fxg4 {[%emt 0:00:01]} hxg4 {[%emt 0:00:02]} 23. Bb3 {[%emt 0:00:02]} Bxb3 {[%emt 0:00:09]} 24. Nxb3 {[%emt 0:00:23]} Nxh4 {[%emt 0:00:03]} 25. Qxg4+ {[%emt 0:00:02]} Ng6 {[%emt 0:00:01]} 26. Rf1 {[%emt 0:00:09]} Qe6 {[%emt 0:00:09]} 27. Qxe6 {[%emt 0:00:06]} fxe6 {[%emt 0:00:01]} 28. Bf2 {[%emt 0:00:15]} Ra8 {[%emt 0:00:14]} 29. Bxb6 {[%emt 0:00:05]} cxb6 {[%emt 0:00:01]} 30. g3 {[%emt 0:00:02]} Kg7 {[%emt 0:00:01]} 31. Kg2 {[%emt 0:00:01]} d5 {[%emt 0:00:01]} 32. Nf3 {[%emt 0:00:07]} Rxa1 {[%emt 0:00:11]} 33. Rxa1 {[%emt 0:00:01]} dxe4 {[%emt 0:00:00]} 34. dxe4 {[%emt 0:00:01]} Rd3 {[%emt 0:00:01]} 35. Rc1 {[%emt 0:00:11]} Nxb4 {[%emt 0:00:03]} 36. Ne1 {[%emt 0:00:01]} Re3 {[%emt 0:00:01]} 37. Kf2 {[%emt 0:00:01]} Rxe1 $1 {[%emt 0:00:01]} ({Much worse is} 37... Rxe4 $6 38. cxb4 Rxb4 39. Rb1 $18) 38. Kxe1 {[%emt 0:00:20]} Nd3+ {[%emt 0:00:00]} 39. Ke2 {[%emt 0:00:05]} Nxc1+ {[%emt 0:00:02]} 40. Nxc1 {[%emt 0:00:00]} Ne7 {[%emt 0:00:06]} 41. Nd3 {[%emt 0:00:02]} Nc6 {[%emt 0:00:01]} 42. Nb4 {[%emt 0:00:05]} Ne7 {[%emt 0:00:02]} 43. Na6 {[%emt 0:00:00]} Nc6 {[%emt 0:00:04]} 44. Nc7 {[%emt 0:00:18]} b4 {[%emt 0:00:01]} 45. cxb4 {[%emt 0:00:00]} Nxb4 {[%emt 0:00:02]} 46. Nxe6+ {[%emt 0:00:03]} Kg6 {[%emt 0:00:01]} 47. Nc7 {[%emt 0:00:02]} Nc6 {[%emt 0:00:04]} 48. Ke3 {[%emt 0:00:08]} Nd4 {[%emt 0:00:02]} 49. Nd5 {[%emt 0:00:01]} b5 {[%emt 0:00:00]} 50. Nb4 {[%emt 0:00:01]} Kg5 {[%emt 0:00:03]} 51. Nd3 {[%emt 0:00:07]} Nc6 {[%emt 0:00:01]} 52. Nc5 {[%emt 0:00:05]} Kg4 {[%emt 0:00:02]} 53. Kf2 {[%emt 0:00:00]} b4 {[%emt 0:00:11]} 54. Nd3 {[%emt 0:00:03]} b3 {[%emt 0:00:00]} 55. Kg2 {[%emt 0:00:01]} Kg5 {[%emt 0:00:00]} 56. Kf3 {[%emt 0:00:06]} Nd4+ {[%emt 0:00:01]} 57. Ke3 {[%emt 0:00:01]} Nc6 {[%emt 0:00:02]} 58. Kd2 {[%emt 0:00:01]} Kg4 {[%emt 0:00:02]} 59. Kc3 {[%emt 0:00:01]} Kxg3 {[%emt 0:00:01]} 60. Kxb3 {[%emt 0:00:01]} Kf3 {[%emt 0:00:01]} 61. Nxe5+ {[%emt 0:00:02]} Nxe5 {[%emt 0:00:01]} 62. Kc3 {[%emt 0:00:00]} Kxe4 {[%emt 0:00:01]} 1/2-1/2